Cogmind - Beta 14 @@@ ROGUE MODE // 2024.08.14 @ 23:35:16 Player: HourglassMan Result: Destroyed by G-34 Mercenary with Small Laser Performance ------------- Evolutions (1) 500 Regions Visited (3) 600 Robots Destroyed (18) 90 Value Destroyed (289) 289 Prototype IDs (1) 20 Alien Tech Used (0) 0 Bonus (4) 4 TOTAL SCORE: 1503 Bonus ------- High Alert Combat Kills 4 Cogmind --------- Core Integrity 0/400 Matter 133/300 Energy 280/280 System Corruption 0% Temperature Cool (6) Movement Treading (240) Ox1 Location -9/Storage Parts ------- > --- POWER (1) -------- Heavy Ion Engine > --- PROPULSION (4) --- Light Treads > --- UTILITY (2) ------ Medium Storage Unit Light Armor Plating > --- WEAPON (2) ------- (None) > --- INVENTORY (10) --- Heavy Ion Engine Heavy Ion Engine Cooled Ion Engine Medium Storage Unit Shield Generator Peak State ------------ > --- POWER ------------ Improved Ion Engine > --- PROPULSION ------- Aluminum Leg Aluminum Leg Aluminum Leg Improved Aluminum Leg > --- UTILITY ---------- Medium Storage Unit Visual Processing Unit > --- WEAPON ----------- EM Pulse Gun Light Assault Rifle > --- INVENTORY -------- Light Ion Engine Improved Ion Engine Improved Ion Engine Light Treads Light Treads Medium Storage Unit Shield Generator Grenade Launcher [Rating: 13] Favorites ----------- Power Light Ion Engine Engine Light Ion Engine Propulsion Aluminum Leg Treads Light Treads Leg Aluminum Leg Utility Medium Storage Unit Device Shield Generator Storage Medium Storage Unit Processor Signal Interpreter Protection Light Armor Plating Weapon Assault Rifle Energy Gun Medium Laser Ballistic Gun Assault Rifle Launcher Grenade Launcher Build | -11 -10 -9 -9 ------- Run | Yrd Mat Mat Sto Slots Evolved 2 | . . 2 . Power . | . . . . Propulsion 2 | . . 2 . Utility . | . . . . Weapon . | . . . . Parts Attached 30 | 6 2 19 3 Power 5 | 1 . 3 1 Engine 5 | 1 . 3 1 Core . | . . . . Reactor . | . . . . Propulsion 8 | 2 1 4 1 Treads 2 | . . 1 1 Leg 6 | 2 1 3 . Wheel . | . . . . Hover . | . . . . Flight . | . . . . Utility 6 | 1 1 3 1 Device 1 | . . 1 . Storage 2 | 1 . 1 . Processor 2 | . 1 1 . Hackware . | . . . . Protection 1 | . . . 1 Artifact . | . . . . Weapon 11 | 2 . 9 . Energy Gun 4 | 1 . 3 . Energy Cannon . | . . . . Ballistic Gun 4 | 1 . 3 . Ballistic Cannon . | . . . . Launcher 3 | . . 3 . Special Weapon . | . . . . Impact Weapon . | . . . . Slashing Weapon . | . . . . Piercing Weapon . | . . . . Special Melee Weapon . | . . . . Unidentified Prototypes 1 | . . . 1 Parts Lost 11 | . . 11 . Power 2 | . . 2 . Propulsion 4 | . . 4 . Utility . | . . . . Weapon 5 | . . 5 . Highest Loss Streak 9 | . . 9 . To Critical Strikes 1 | . . 1 . Average Slot Usage (%) 85 | . 94 92 37 Engine 10 | . 14 10 5 Treads 2 | . . 1 9 Leg 29 | . 28 36 . Storage 11 | . 14 11 11 Processor 8 | . 8 10 . Protection 1 | . . . 9 Energy Gun 8 | . 14 6 . Ballistic Gun 11 | . 14 12 . Peak Build Rating 13 | 6 7 13 7 Average Rating 8 | 5 6 10 4 On Entrance 4 | . 6 7 3 Naked Turns . | . . . . Heaviest Build 22 | 12 12 22 21 Greatest Support 43 | 20 20 43 20 Greatest Overweight (x) 4 | 1 . 4 3 Average Overweight (x) . | . . . . Largest Inventory Capacity 10 | 8 8 10 10 Average Capacity 9 | 7 8 9 10 Most Carried 10 | 4 8 10 5 Average Carried 6 | 2 6 8 3 Final Capacity 10 | 8 8 10 10 Final Carried 8 | 4 8 3 5 Class Distribution -------------------- 87% | Mutant 12% | Scavenger-Mutant Dominant Class ---------------- Mutant | -10/Materials Mutant | -9/Materials Mutant | -9/Storage Resources | -11 -10 -9 -9 ----------- Run | Yrd Mat Mat Sto Matter Collected 362 | 129 138 95 . Remotely . | . . . . Salvage Created 292 | . 138 154 . Parts 45 | . 11 34 . Haulers Intercepted . | . . . . Recyclers Shooed . | . . . . Parts Field Recycled . | . . . . Retrieved Matter . | . . . . Parts Self-Destructed . | . . . . Prevented . | . . . . Kills | -11 -10 -9 -9 ------- Run | Yrd Mat Mat Sto Combat Hostiles Destroyed 13 | . 3 10 . Guns 8 | . 3 5 . AOE 5 | . . 5 . Classes Destroyed 4 | . 2 2 . Builder 3 | . . 3 . Watcher 2 | . 1 1 . Swarmer 10 | . . 10 . Grunt 3 | . 3 . . Best Kill Streak 6 | . 3 6 . Combat Bots Only 3 | . 2 3 . Max Kills in Single Turn 2 | . 1 2 . Gunslinging . | . . . . Exploded 2 | . . 2 . Melee . | . . . . Uniques/NPCs Destroyed . | . . . . Combat | -11 -10 -9 -9 -------- Run | Yrd Mat Mat Sto Hostile Shots Fired 180 | . 30 119 31 Missed 41 | . 7 27 7 Damage Taken 1805 | . 252 1293 260 Core 435 | . 32 330 73 Absorbed by Shields 27 | . . 27 . Core Remaining (%) 93 | 100 87 . . Volleys Fired 39 | . 12 27 . Largest 2 | . 2 2 . Hottest 70 | . 70 60 . Shots Fired 69 | . 24 45 . Gun 61 | . 24 37 . Cannon . | . . . . Launcher 8 | . . 8 . Special . | . . . . Kinetic 39 | . 12 27 . Thermal 14 | . 12 2 . Explosive 8 | . . 8 . Electromagnetic 8 | . . 8 . Robot Hit Streak 9 | . 9 6 . Robot Miss Streak 7 | . 2 7 . Penetration Max . | . . . . Secondary Targets . | . . . . Shots Hit Robots 43 | . 18 25 . Core Hits 29 | . 7 21 1 Critical Kills . | . . . . Critical Parts Destroyed . | . . . . Critical Strikes . | . . . . Melee Attacks . | . . . . Impact . | . . . . Slashing . | . . . . Piercing . | . . . . Sneak Attacks . | . . . . Combat Hostiles . | . . . . Follow-up Attacks . | . . . . Damage Inflicted 1071 | . 229 834 8 Guns 396 | . 229 167 . Cannons . | . . . . Explosions 667 | . . 667 . Melee . | . . . . Ramming 8 | . . . 8 Kinetic 239 | . 118 121 . Thermal 244 | . 111 133 . Explosive 534 | . . 534 . Electromagnetic 46 | . . 46 . Impact . | . . . . Slashing . | . . . . Piercing . | . . . . Highest Corruption . | . . . . Average Corruption . | . . . . Corruption Purged . | . . . . Corruption Blocked . | . . . . Overload Shots . | . . . . Overflow Damage 24 | . . 24 . Projectiles . | . . . . Explosions 24 | . . 24 . Melee . | . . . . Knockbacks . | . . . . Impact . | . . . . Kinetic . | . . . . Secondary . | . . . . Self-Inflicted Damage 159 | . . 159 . Shots 6 | . . 6 . Rammed 5 | . . . 5 Targets Rammed 5 | . . . 5 Kicked . | . . . . Crushed . | . . . . Highest Temperature 102 | . 102 52 . Average Temperature 28 | . 38 18 . Received Heat Transfer 561 | . 138 279 144 Siege Activations . | . . . . Robots Corrupted . | . . . . Combat Hostiles . | . . . . Parts Fried . | . . . . Impact Corruptions . | . . . . Robots Melted . | . . . . Combat Hostiles . | . . . . Parts Melted 1 | . 1 . . Heat Transferred 483 | . 333 150 . Parts Sabotaged . | . . . . Parts Stolen . | . . . . Parts Stripped . | . . . . Power Chain Reactions 2 | . . 2 . Alert | -11 -10 -9 -9 ------- Run | Yrd Mat Mat Sto Peak Influence 468 | . 102 468 91 Initial 91 | . . 42 91 Average 117 | . 47 184 91 Maximum Alert Level 2 | . . 2 . Low Security (%) 73 | 100 100 47 100 Level 1 23 | . . 45 . Level 2 3 | . . 7 . Level 3 . | . . . . Level 4 . | . . . . Level 5 . | . . . . High Security . | . . . . Max Security . | . . . . Squads Dispatched 5 | . 3 1 1 Investigation 1 | . . . 1 Extermination . | . . . . Reinforcement 4 | . 3 1 . Assault . | . . . . Garrison . | . . . . Intercept . | . . . . Searches Triggered . | . . . . Construction Impeded 1 | . . 1 . Haulers Reinforced . | . . . . Active Scanning Responses . | . . . . Cargo Convoy Interrupts . | . . . . Stealth | -11 -10 -9 -9 --------- Run | Yrd Mat Mat Sto Distress Signals 1 | . . 1 . Communications Jammed . | . . . . Distress Signals . | . . . . Times Spotted 28 | . 6 19 3 Peak Tracking Total 7 | . 3 7 3 Tactical Retreats 3 | . . 3 . Traps | -11 -10 -9 -9 ------- Run | Yrd Mat Mat Sto Traps Triggered . | . . . . Indirectly . | . . . . Trap Hack Attempts . | . . . . Triggered . | . . . . Disarmed . | . . . . Reprogrammed . | . . . . Reused . | . . . . Traps Extracted . | . . . . Installed . | . . . . Triggered . | . . . . Machines | -11 -10 -9 -9 ---------- Run | Yrd Mat Mat Sto Machines Disabled 4 | . . 4 . Max in Single Turn 1 | . . 1 . Machines Repaired . | . . . . Machines Dismantled . | . . . . Machines Sabotaged . | . . . . Overloaded Fab Kills . | . . . . Hacking | -11 -10 -9 -9 --------- Run | Yrd Mat Mat Sto Machines Accessed 3 | . 1 . 2 Terminals 1 | . . . 1 Fabricators . | . . . . Repair Stations . | . . . . Recycling Units 2 | . 1 . 1 Scanalyzers . | . . . . Garrison Access . | . . . . Total Hacks 7 | . 3 . 4 Successful 4 | . 3 . 1 Failed 3 | . . . 3 Catastrophic 1 | . . . 1 Database Lockouts . | . . . . Manual . | . . . . Terminals 2 | . . . 2 Fabricators . | . . . . Repair Stations . | . . . . Recycling Units 5 | . 3 . 2 Scanalyzers . | . . . . Garrison Access . | . . . . Terminal Hacks 1 | . . . 1 Open Door 1 | . . . 1 Fabricator Hacks . | . . . . Repair Station Hacks . | . . . . Recycling Unit Hacks 3 | . 3 . . Process 1 | . 1 . . Report Inventory 1 | . 1 . . Retrieve Matter 1 | . 1 . . Scanalyzer . | . . . . Garrison Access Hacks . | . . . . Unauthorized Hacks . | . . . . Terminals . | . . . . Fabricators . | . . . . Repair Stations . | . . . . Recycling Units . | . . . . Scanalyzers . | . . . . Garrison Access . | . . . . Data Cores Recovered . | . . . . Used . | . . . . Hacking Detections 3 | . 1 . 2 Full Trace Events 1 | . . . 1 Feedback Events . | . . . . Feedback Blocked . | . . . . Robot Schematics Acquired . | . . . . Robots Built . | . . . . Authchips . | . . . . Time . | . . . . Total Robot Build Rating . | . . . . Part Schematics Acquired . | . . . . Parts Built . | . . . . Authchips . | . . . . Time . | . . . . Total Part Build Rating . | . . . . Parts Repaired . | . . . . Time . | . . . . Parts Recycled . | . . . . Recycled Matter 47 | . 47 . . Retrieved Matter 47 | . 47 . . Retrieved Components . | . . . . Parts Scanalyzed . | . . . . Part Schematics Acquired . | . . . . Parts Damaged . | . . . . Bothacking | -11 -10 -9 -9 ------------ Run | Yrd Mat Mat Sto Used RIF Installer . | . . . . Robots Hacked . | . . . . Non-combat . | . . . . Combat . | . . . . Robot Hacks Applied . | . . . . Relay Couplers Released . | . . . . Fabnet Peak Effective % . | . . . . Robots Rewired . | . . . . Allies Hacked . | . . . . Hacks Repelled . | . . . . Allies | -11 -10 -9 -9 -------- Run | Yrd Mat Mat Sto Total Allies . | . . . . Largest Group . | . . . . Highest-Rated Group . | . . . . Highest-Rated Ally . | . . . . Total Orders . | . . . . Ally Attacks . | . . . . Total Damage . | . . . . Kills . | . . . . Allies Corrupted . | . . . . Allies Melted . | . . . . Intel | -11 -10 -9 -9 ------- Run | Yrd Mat Mat Sto Robot Analysis Total . | . . . . Derelict Logs Recovered . | . . . . Drone Launches . | . . . . Drone Recoveries . | . . . . Exploration | -11 -10 -9 -9 ------------- Run | Yrd Mat Mat Sto Turns Passed 839 | 82 235 427 95 Spaces Moved 498 | 60 160 238 40 Core 16 | 5 . 9 2 Treads 41 | . . 3 38 Legs 441 | 55 160 226 . Wheels . | . . . . Hover . | . . . . Flight . | . . . . Fastest Speed 50 | 50 120 120 160 Average Speed 128 | 116 120 127 188 Slowest Speed 250 | 190 120 250 240 Overloaded Moves . | . . . . Propulsion Burnouts . | . . . . Robots Hopped . | . . . . Cave-ins Triggered . | . . . . Exploration Rate (%) 16 | 4 30 23 7 Regions Visited 3 Branch Regions 1 Pre-discovered Areas . | . . . . Known Exits Taken 1 | . 1 . . Unknown Exits Taken 2 | 1 . 1 . Scrap Searched . | . . . . Spaces Dug . | . . . . Terrain Destroyed 54 | . . 54 . Melee . | . . . . Projectile . | . . . . AOE 54 | . . 54 . Terrain Rammed . | . . . . Walls Destroyed . | . . . . Machines Disabled . | . . . . Actions | -11 -10 -9 -9 --------- Run | Yrd Mat Mat Sto Total 624 | 69 178 324 53 Wait 19 | . . 19 . Move 495 | 59 159 237 40 Hop . | . . . . Pick Up 21 | 4 4 9 4 Fast Attach 12 | 6 2 3 1 Attach 9 | . . 8 1 Detach 2 | . . 2 . Swap 9 | . . 8 1 Drop 13 | . 1 11 1 Fire 39 | . 12 27 . Melee . | . . . . Ram . | . . . . Kick . | . . . . Crush 5 | . . . 5 Escape Stasis . | . . . . Rewire . | . . . . Trap . | . . . . Miscellaneous . | . . . . Route ------- -11/Scrapyard -10/Materials -9/Materials -9/Storage History --------- Turn | Location | Event 26 | -11/Scrapyard | Discovered new exit (range 13) 83 | -11/Scrapyard | Entered Materials 294 | -10/Materials | Discovered new exit (range 16) 312 | -10/Materials | Identified exit to Materials 313 | -10/Materials | Build established: Mutant 318 | -10/Materials | Entered another Materials area 318 | -9/Materials | Evolved 2 slots: Propulsion x2 668 | -9/Materials | Discovered new exit (range 17) 719 | -9/Materials | Core integrity fell below 50% 745 | -9/Materials | Core integrity fell below 20% 745 | -9/Materials | Entered Storage 763 | -9/Storage | Lost 9 parts (2p4n3w) 840 | -9/Storage | Destroyed by G-34 Mercenary with Small Laser Last Messages --------------- Wheel crushed. U-05 Engineer lays Concrete. U-05 Engineer builds a Wall. U-05 Engineer lays Concrete. LOCATION=UNKNOWN GOAL=ESCAPE Dropped Lgt. Treads. Acquired Lgt. Treads. Connecting with Recycling Unit... Current location identified: Storage ALERT: Suspicious activity at Recycling Unit S002. Dispatching Investigation squad. Connecting with Door Terminal... >>Open(Door) Sealed Heavy Doors opened. Acquired Prototype Engine. Identified Hvy. Ion Engine. Acquired Hvy. Ion Engine. Acquired Prototype Engine. Slammed into G-34 Mercenary. Map ----- +----------------------------------------------------+ | | | ???????????????????????????????? | | ???????????????????????????????? | | ???????????????????????????????? | | ???????????????????????????????? | | ???????????????????????????????? | | ???????????????????????????????? | | ???????????????????????????????? | | ????#####??????????????????????? | | ????# #??????????????????????? | | ????# #??????????????????????? | | ?#### #??????????????????????? | | ?#""" #??????????????????????? | | ?#"Y #??????????????????????? | | ?#""" +??????????????????????? | | ?#### #??????????????????????? | | ????# #??????????????????????? | | ????# +??????????????????????? | | ????# #??????????????????????? | | ????# #??????????????????????? | | ????# #####??????????????????? | | ????# g ##?????????????????? | | ????# g# T#?????????????????? | | ????# ## ##?????????????????? | | ????# ##* #??????????????????? | | ????# @##* #??????????????????? | | ????# ## #??????????????????? | | ????# #####??????????????????? | | ????# #??????????????????????? | | ????# T??????????????????????? | | ????# a##?????????????????????? | | ????#^ #??????????????????????? | | ????# m#??????????????????????? | | ????# g #??????????????????????? | | ????# #??????????????????????? | | ????# #??????????????????????? | | ????# #??????????????????????? | | ????# #??????????????????????? | | ????# #??????????????????????? | | ????# #??????????????????????? | | ????? ???????????????????????? | | ???????????????????????????????? | | ???????????????????????????????? | | ???????????????????????????????? | | ???????????????????????????????? | | ???????????????????????????????? | | ???????????????????????????????? | | ???????????????????????????????? | | ???????????????????????????????? | | ???????????????????????????????? | +----------------------------------------------------+ Best States ------------- Heat Dissipation 28 Energy Generation 14 Energy Capacity 280 Matter Stores 298 Matter Capacity 300 Sight Range 18 Terrain Scan Density 10 Armor Coverage 150 Evasion (%) 55 Recoil Reduction 1 Item Schematics ----------------- None Robot Schematics ------------------ None Fabricated ------------ Nothing Alien Tech Used ----------------- None Achievements -------------- None Challenges ------------ None Game ------ Seed CentriumHeavySlayer Manual? 0 Play Time 00:15:18 Cumulative 13.1 hours Start 2024.08.14 @ 23:07:22 End 2024.08.14 @ 23:35:16 Sessions 1 Manual Loads 0 Difficulty Rogue Special Mode None Game No. 32 Rogue 32 Adventurer 0 Explorer 0 Win Type - Total 0 Types 0/0/0/0/0/0/0/0/0 Lore% 9 Gallery% 16 Achievement% 15 Wizard Run 0 Options --------- Layout 1 ASCII 0 Keyboard 1 Movement Numpad Keybinds 0 Fullscreen 1 Font 24/Smallcaps Map View 50x35 Zoom Use 0% Tactical HUD 0 Map Filters NONE Filters NONE Steam 1 RUN: e1172ba4-6cfd-453c-bfa1-5ec854f75fc5